fUST/lending_fUST_20240513
["ID","MTS","AMOUNT","RATE_DAILY","PERIOD"]
[326927685,1715599838675,-500.0,0.00019992,2]
[326927687,1715599838685,-500.0,0.00019992,2]
[326927689,1715599838695,-500.0,0.00019992,2]
[326927691,1715599838704,-500.0,0.00019992,2]
[326927693,1715599838715,-500.0,0.00019992,2]
[326927695,1715599838724,-500.0,0.00019992,2]
[326927697,1715599838735,-500.0,0.00019992,2]
[326927699,1715599838745,-500.0,0.00019992,2]
[326927701,1715599838755,-500.0,0.00019992,2]
[326927703,1715599838765,-500.0,0.00019992,2]
[326927705,1715599838774,-500.0,0.00019992,2]
[326927707,1715599838784,-500.0,0.00019992,2]
[326927709,1715599838795,-500.0,0.00019992,2]
[326927711,1715599838805,-500.0,0.00019992,2]
[326927713,1715599838815,-500.0,0.00019992,2]
[326927714,1715599838825,-500.0,0.00019992,2]
[326927715,1715599838836,-500.0,0.00019992,2]
[326927716,1715599838845,-500.0,0.00019992,2]
[326927717,1715599838855,-500.0,0.00019992,2]
[326927718,1715599838865,-500.0,0.00019992,2]
[326927719,1715599838875,-500.0,0.00019992,2]
[326927720,1715599838886,-500.0,0.00019992,2]
[326927721,1715599838895,-500.0,0.00019992,2]
[326927722,1715599838905,-500.0,0.00019992,2]
[326927723,1715599838915,-500.0,0.00019992,2]
[326927724,1715599838925,-500.0,0.00019992,2]
[326927725,1715599838934,-500.0,0.00019992,2]
[326927726,1715599838944,-500.0,0.00019992,2]
[326927727,1715599838954,-597.99193471,0.00019992,2]
[326927728,1715599838964,-500.0,0.00019992,2]
[326927729,1715599838974,-500.0,0.00019992,2]
[326927730,1715599838984,-500.0,0.00019992,2]
[326927731,1715599839111,-79.06267871,0.00019998,2]
[326927732,1715599839122,-500.0,0.00019998,2]
[326927733,1715599839134,-500.0,0.00019998,2]
[326927734,1715599839144,-500.0,0.00019998,2]
[326927735,1715599839154,-500.0,0.00019998,2]
[326927736,1715599839164,-500.0,0.00019998,2]
[326927737,1715599839176,-500.0,0.00019998,2]
[326927738,1715599839186,-500.0,0.00019998,2]
[326927739,1715599839197,-500.0,0.00019998,2]
[326927740,1715599839207,-500.0,0.00019998,2]
[326927741,1715599839217,-207.53042349,0.00019998,2]
[326927742,1715599839228,-500.0,0.00019998,2]
[326927743,1715599839238,-500.0,0.00019998,2]
[326927744,1715599839248,-500.0,0.00019998,2]
[326927745,1715599839259,-5339.1513335,0.0002,2]
[326927746,1715599839269,-18852.21189855,0.0002,2]
[326927747,1715599839279,-154.75950547,0.0002,2]
[326927748,1715599839294,-3490.21958311,0.0002,2]
[326927749,1715599839304,-13641.59014947,0.0002,2]
[326927750,1715599839314,-166.666666,0.00021918,2]
[326927751,1715599839325,-159.4535182,0.00022,2]
[326927752,1715599839336,-4923.39976237,0.00022,4]
[326927753,1715599839346,-166.666666,0.00022431,2]
[326927754,1715599839356,-150.0,0.00022737,2]
[326927755,1715599839368,-166.666666,0.00022944,2]
[326927756,1715599839378,-264.54402462,0.00023,2]
[326927757,1715599839389,-166.666666,0.00023456,2]
[326927758,1715599839399,-160.554815,0.00023562,2]
[326927759,1715599839410,-159.738959,0.00023562,2]
[326927760,1715599839421,-161.456337,0.00023562,2]
[326927761,1715599839432,-2095.75795946,0.000239,2]
[326927762,1715599839443,-166.666666,0.00023969,2]
[326927763,1715599839453,-166.666666,0.00024482,2]
[326927764,1715599839465,-154.75239617,0.00025,2]
[326927765,1715599839476,-400.19675117,0.00025,2]
[326927766,1715599839486,-353.57436039,0.00025,2]
[326927767,1715599839496,-155.26465227,0.00025,2]
[326927768,1715599839506,-150.0,0.00025033,2]
[326927769,1715599839516,-251.17347755,0.00027,2]
[326927770,1715599839526,-150.0,0.0002733,3]
[326927771,1715599839536,-154.8915759,0.0002739,2]
[326927772,1715599839547,-258.5044586,0.00028,2]
[326927773,1715599839557,-2095.75795946,0.000289,2]
[326927774,1715599839567,-200.537669,0.00029434,2]
[326927775,1715599839577,-159.738959,0.00029531,2]
[326927776,1715599839589,-150.0,0.00029626,3]
[326927777,1715599839600,-3959.6,0.0002999,3]
[326927778,1715599839610,-154.75239617,0.0003,2]
[326927779,1715599839620,-278.52457431,0.0003,2]
[326927780,1715599839836,-4572.28837832,0.0003,2]
[326927781,1715599839852,-1002.48414,0.0003,2]
[326927782,1715599840967,-416.64966704,0.0003,2]
[326927793,1715599844524,-390.12660458,0.00019992,2]
[326927795,1715599844534,-955.47213088,0.0003,2]
[326927796,1715599844547,-7943.88082952,0.0003,2]
[326927804,1715599846597,-969.0186623,0.0003,2]
[326927807,1715599846610,-471.37355978,0.0003,2]
[326928410,1715601032131,-178.403493,0.00019178,2]
[326928411,1715601032141,-1483.77025209,0.00019485,2]
[326928412,1715601032151,-897.95377888,0.00019491,2]
[326928413,1715601032162,-3154.8140198,0.00019491,2]
[326928414,1715601032172,-372.31624743,0.00019491,2]
[326928415,1715601032182,-7221.64759886,0.00019492,2]
[326928416,1715601032192,-24900.0,0.00019493,2]
[326928417,1715601032201,-7950.81027008,0.00019585,2]
[326928458,1715601040472,-5241.89848587,0.00019484,2]
[326928476,1715601046767,-498.542,0.00019484,2]
[326928480,1715601051601,930.61533335,0.00014,2]
[326928481,1715601121566,154.75239617,0.00014,2]
[326928482,1715601145557,154.75239617,0.00014,2]
[326928483,1715601163565,154.96349293,0.00014,2]
[326928489,1715601220628,154.75239617,0.0001,2]
[326928490,1715601280342,2086.74746569,0.00018,2]
[326928491,1715601564343,708.8121984,9.999e-05,2]
[326928492,1715601637499,834.68794091,9.999e-05,2]
[326928493,1715601700191,930.61533335,0.00014,2]
[326928494,1715601712176,931.11416776,0.0001749,2]
[326928495,1715602003724,230.1422143,0.0001749,2]
[326928496,1715602035115,-237.03580854,0.00018408,2]
[326928497,1715602074584,24900.0,0.00017411,2]
[326928500,1715602199902,10000.0,0.00018,2]
[326928502,1715602232437,-150.0,0.000183,2]
[326928503,1715602232446,-6956.37429953,0.00018409,2]
[326928505,1715602232456,-2676.40689698,0.0001841,2]
[326928507,1715602232465,-837.30441015,0.00018411,2]
[326928509,1715602232475,-409.95141786,0.00018411,2]
[326928511,1715602232484,-155.23409832,0.00018411,2]
[326928512,1715602232493,-293.31558357,0.00018411,2]
[326928513,1715602232502,-155.26532653,0.00018412,2]
[326928514,1715602232511,-693.74190509,0.00018412,2]
[326928539,1715602238538,-941.43610251,0.00018412,2]
[326928540,1715602238549,-2217.54214438,0.00018412,2]
[326928541,1715602238560,-2144.79406868,0.00018412,2]
[326928542,1715602238570,-150.0,0.000189,2]
[326928543,1715602238579,-176.45933,0.00019178,2]
[326928544,1715602238589,-521.55910022,0.00019388,2]
[326928545,1715602238598,-154.79876161,0.00019388,2]
[326928546,1715602238607,-296.88914221,0.00019388,2]
[326928547,1715602238616,-179.48120608,0.00019388,2]
[326928548,1715602238626,-309.47389438,0.00019388,2]
[326928549,1715602238635,-208.47766256,0.00019388,2]
[326928550,1715602238644,-385.69668503,0.00019388,2]
[326928551,1715602238656,-237.08745032,0.00019389,2]
[326928552,1715602238664,-201.9741619,0.00019426,2]
[326928553,1715602238673,-967.20853701,0.00019484,2]
[326928582,1715602242114,-2674.62929137,0.00019484,2]
[326928585,1715602242341,-8.16435078,0.00019484,2]
[326928587,1715602242351,-161.20768773,0.00019586,2]
[326928590,1715602242362,-304.50279059,0.00019991,2]
[326928591,1715602242372,-191.73949063,0.00019999,2]
[326928594,1715602242391,-576.17572365,0.00019999,2]
[326928597,1715602242406,-7107.26846787,0.0002,2]
[326928599,1715602242416,-1391.40630233,0.00020515,2]
[326928601,1715602242426,-1883.78526322,0.00020615,2]
[326928603,1715602242436,-356.05169669,0.00020616,2]
[326928605,1715602242446,-154.90718629,0.00020617,2]
[326928607,1715602242456,-701.44722507,0.00020617,2]
[326928609,1715602242467,-171.22542496,0.00020617,2]
[326928611,1715602242477,-267.33666373,0.00020617,2]
[326928613,1715602242487,-11255.36796544,0.00020619,2]
[326928615,1715602242496,-1510.54041838,0.00020812,2]
[326928617,1715602242506,-500.0,0.00020913,2]
[326928619,1715602242516,-500.0,0.00020913,2]
[326928621,1715602242526,-500.0,0.00020913,2]
[326928623,1715602242536,-500.0,0.00020913,2]
[326928625,1715602242546,-500.0,0.00020913,2]
[326928627,1715602242555,-500.0,0.00020913,2]
[326928629,1715602242565,-500.0,0.00020913,2]
[326928631,1715602242575,-209.79919347,0.00020913,2]
[326928633,1715602242584,-500.0,0.00020913,2]
[326928636,1715602242594,-500.0,0.00020913,2]
[326928637,1715602242603,-500.0,0.00020913,2]
[326928639,1715602242613,-500.0,0.00020913,2]
[326928642,1715602242623,-500.0,0.00020913,2]
[326928643,1715602242632,-500.0,0.00020913,2]
[326928645,1715602242642,-500.0,0.00020913,2]
[326928647,1715602242654,-500.0,0.00020913,2]
[326928650,1715602242664,-500.0,0.00020913,2]
[326928651,1715602242673,-500.0,0.00020913,2]
[326928654,1715602242683,-500.0,0.00020913,2]
[326928656,1715602242692,-500.0,0.00020913,2]
[326928657,1715602242702,-500.0,0.00020913,2]
[326928660,1715602242711,-500.0,0.00020913,2]
[326928661,1715602242721,-657.01747562,0.00020913,2]
[326928663,1715602242730,-209.884538,0.00021918,2]
[326928666,1715602242740,-9555.86385356,0.00022,2]
[326928667,1715602242750,-259.227113,0.00023562,2]
[326928670,1715602242759,-160.877038,0.00023562,2]
[326928671,1715602242769,-199.959248,0.00023562,2]
[326928673,1715602242778,-1510.54041836,0.00026415,2]
[326928676,1715602242788,-233.734,0.00027397,120]
[326928677,1715602242797,-985.39342427,0.0002877,2]
[326928679,1715602242806,-1345.56800341,0.00029,2]
[326928682,1715602242816,-175.24955206,0.00029531,2]
[326928728,1715602246498,-625.13212042,0.00020912,2]
[326928734,1715602409318,1625.2770642,9.999e-05,2]
[326928745,1715602636003,3000.0,0.00017765,2]
[326928758,1715602821045,708.8121984,9.999e-05,2]
[326928760,1715602912934,418.653671,0.0001761,2]
[326928763,1715602958136,10000.0,0.00018,2]
[326928764,1715602984617,10000.0,0.00018,2]
[326928765,1715603001804,10000.0,0.00018,2]
[326928766,1715603001835,11055.89279589,0.0001769,2]
[326928767,1715603001860,13844.10720411,0.0001769,2]
[326928770,1715603012008,10000.0,0.00018,2]
[326928771,1715603012251,9920.0,0.00018,2]
[326928772,1715603021365,10000.0,0.00018,2]
[326928773,1715603028735,10000.0,0.00018,2]
[326928775,1715603037960,10000.0,0.00018,2]
[326928776,1715603047221,10000.0,0.00018,2]
[326928788,1715603173249,4816.0,0.00018,2]
[326928794,1715603248144,-574.73449503,0.00018399,2]
[326928795,1715603248164,-157.20588658,0.00018597,2]
[326928796,1715603248184,-1646.63596047,0.00018598,2]
[326928797,1715603398611,209.326835,0.00017729,2]
[326928823,1715603432619,-164.36252321,0.00018498,2]
[326928825,1715603432629,-292.98424919,0.00018597,2]
[326928826,1715603432638,-731.94038161,0.00018598,2]
[326928827,1715603432649,-49044.22130495,0.00018599,2]
[326928828,1715603432658,-1535.04544487,0.00018721,2]
[326928829,1715603432667,-604.89828257,0.00018821,2]
[326928830,1715603432676,-323.56362609,0.000189,2]
[326928831,1715603432687,-174.301399,0.00019178,2]
[326928832,1715603432696,-177.755439,0.00019178,2]
[326928833,1715603432716,-202.7142064,0.0001978,2]
[326928834,1715603432726,-929.19325588,0.00019866,2]
[326928835,1715603432737,-155.21163658,0.00019998,2]
[326928836,1715603432747,-3343.90529574,0.00019999,2]
[326928837,1715603432757,-1621.85569265,0.00019999,2]
[326928838,1715603432768,-7107.26846787,0.0002,2]
[326928839,1715603432778,-1138.59791908,0.00020808,2]
[326928840,1715603432789,-500.0,0.00020907,2]
[326928841,1715603432799,-500.0,0.00020907,2]
[326928842,1715603432809,-500.0,0.00020907,2]
[326928843,1715603432819,-500.0,0.00020907,2]
[326928844,1715603432829,-146.71891345,0.00020907,2]
[326928845,1715603432843,-353.28108655,0.00020907,2]
[326928846,1715603432852,-110.48549705,0.00020907,2]
[326928880,1715603438610,-389.51450295,0.00020907,2]
[326928882,1715603438619,-333.81401589,0.00020907,2]
[326928884,1715603438631,-166.18598411,0.00020907,2]
[326928886,1715603438640,-500.0,0.00020907,2]
[326928888,1715603438649,-500.0,0.00020907,2]
[326928890,1715603438658,-170.97991934,0.00020907,2]
[326928892,1715603438668,-157.73485353,0.00020907,2]
[326928897,1715603438707,-342.26514647,0.00020907,2]
[326928899,1715603438716,-500.0,0.00020907,2]
[326928901,1715603438725,-500.0,0.00020907,2]
[326928903,1715603438734,-500.0,0.00020907,2]
[326928905,1715603438744,-584.20614554,0.00020908,2]
[326928907,1715603438753,-538.62870798,0.00020908,2]
[326928952,1715603441043,-220.79199962,0.00020908,2]
[326928996,1715603443903,-2244.17137475,0.00020908,2]
[326928997,1715603443912,-400.0,0.00020908,2]
[326928998,1715603443922,-206.68276306,0.00020908,2]
[326928999,1715603443931,-311.84730404,0.00020908,2]
[326929000,1715603443942,-154.93880964,0.00020908,2]
[326929001,1715603444063,-154.90586739,0.00020909,2]
[326929002,1715603444079,-1092.87842809,0.00020909,2]
[326929003,1715603444089,-207.0666,0.00020909,2]
[326929004,1715603444098,-500.0,0.00020909,2]
[326929005,1715603444108,-500.0,0.00020909,2]
[326929006,1715603444118,-578.36273116,0.00020909,2]
[326929007,1715603444128,-500.0,0.00020909,2]
[326929008,1715603444139,-500.0,0.00020909,2]
[326929009,1715603444151,-162.25912705,0.00020909,2]
[326929010,1715603444164,-500.0,0.00020909,2]
[326929011,1715603444174,-499.56979589,0.00020909,2]
[326929012,1715603444185,-500.0,0.00020909,2]
[326929013,1715603444196,-500.0,0.00020909,2]
[326929014,1715603444207,-500.0,0.00020909,2]
[326929015,1715603444216,-500.0,0.00020909,2]
[326929016,1715603444226,-500.0,0.00020909,2]
[326929017,1715603444235,-500.0,0.00020909,2]
[326929018,1715603444244,-500.0,0.00020909,2]
[326929019,1715603444254,-500.0,0.00020909,2]
[326929020,1715603444263,-449.87093876,0.00020909,2]
[326929021,1715603444272,-282.5085467,0.0002091,2]
[326929022,1715603444281,-189.69444695,0.0002091,2]
[326929023,1715603444297,-1215.77339326,0.0002091,2]
[326929024,1715603444306,-155.01782241,0.0002091,2]
[326929025,1715603444316,-744.4752283,0.0002091,2]
[326929026,1715603444328,-154.91322272,0.0002091,2]
[326929027,1715603444338,-155.37814401,0.0002091,2]
[326929028,1715603444348,-412.67758215,0.0002091,2]
[326929029,1715603444357,-154.99792824,0.0002091,2]
[326929030,1715603444368,-849.40273003,0.0002091,2]
[326929031,1715603444379,-154.93042618,0.0002091,2]
[326929032,1715603444388,-904.17611442,0.0002091,2]
[326929033,1715603444397,-67507.49755129,0.0002091,2]
[326929034,1715603444408,-154.99553986,0.0002091,2]
[326929035,1715603444417,-315.31138865,0.0002091,2]
[326929036,1715603444426,-154.92991053,0.0002091,2]
[326929037,1715603444434,-155.02864487,0.0002091,2]
[326929038,1715603444445,-354.00365266,0.0002091,2]
[326929039,1715603444454,-155.16874356,0.0002091,2]
[326929040,1715603444464,-1336.28920915,0.0002091,2]
[326929041,1715603444473,-2323.07499268,0.0002091,2]
[326929042,1715603444482,-720.75125023,0.0002091,2]
[326929043,1715603444492,-816.63039643,0.0002091,2]
[326929044,1715603444502,-1493.5731825,0.0002091,2]
[326929045,1715603444511,-22441.77649317,0.0002091,2]
[326929046,1715603444520,-151.0,0.0002091,2]
[326929047,1715603444530,-185.084868,0.0002091,2]
[326929048,1715603444539,-151.0,0.0002091,2]
[326929049,1715603444549,-151.0,0.0002091,2]
[326929050,1715603444559,-151.0,0.0002091,2]
[326929051,1715603444568,-151.0,0.0002091,2]
[326929052,1715603444578,-151.0,0.0002091,2]
[326929053,1715603444588,-151.0,0.0002091,2]
[326929054,1715603444598,-151.0,0.0002091,2]
[326929055,1715603444607,-151.0,0.0002091,2]
[326929056,1715603444616,-151.0,0.0002091,2]
[326929057,1715603444626,-323.816752,0.0002091,2]
[326929058,1715603444635,-323.816752,0.0002091,2]
[326929059,1715603444645,-323.816752,0.0002091,2]
[326929060,1715603444655,-323.816752,0.0002091,2]
[326929061,1715603444664,-323.816752,0.0002091,2]
[326929062,1715603444672,-323.816752,0.0002091,2]
[326929063,1715603444682,-151.615467,0.0002091,2]
[326929064,1715603444692,-151.0,0.0002091,2]
[326929065,1715603444701,-257.468207,0.0002091,2]
[326929066,1715603444710,-151.0,0.0002091,2]
[326929067,1715603444720,-151.0,0.0002091,2]
[326929068,1715603444729,-151.585567,0.0002091,2]
[326929069,1715603444739,-227.968511,0.0002091,2]
[326929070,1715603444748,-227.968511,0.0002091,2]
[326929071,1715603444757,-227.968511,0.0002091,2]
[326929072,1715603444766,-227.968511,0.0002091,2]
[326929073,1715603444775,-227.968511,0.0002091,2]
[326929074,1715603444784,-227.968511,0.0002091,2]
[326929075,1715603444793,-227.968511,0.0002091,2]
[326929076,1715603444803,-227.968511,0.0002091,2]
[326929077,1715603444812,-151.0,0.0002091,2]
[326929078,1715603444822,-151.0,0.0002091,2]
[326929079,1715603444831,-151.0,0.0002091,2]
[326929080,1715603444840,-151.675061,0.0002091,2]
[326929081,1715603444849,-151.0,0.0002091,2]
[326929082,1715603444859,-236.155983,0.0002091,2]
[326929083,1715603444868,-349.659806,0.0002091,2]
[326929084,1715603444877,-349.659806,0.0002091,2]
[326929085,1715603444887,-273.151034,0.0002091,2]
[326929086,1715603444897,-273.151034,0.0002091,2]
[326929087,1715603444906,-349.659806,0.0002091,2]
[326929088,1715603444915,-349.659806,0.0002091,2]
[326929089,1715603444924,-273.151034,0.0002091,2]
[326929090,1715603444934,-273.151034,0.0002091,2]
[326929091,1715603444944,-213.552262,0.0002091,2]
[326929092,1715603444953,-151.0,0.0002091,2]
[326929093,1715603444963,-151.0,0.0002091,2]
[326929094,1715603444972,-151.0,0.0002091,2]
[326929095,1715603444981,-211.335094,0.0002091,2]
[326929096,1715603444990,-152.696116,0.0002091,2]
[326929097,1715603444999,-151.0,0.0002091,2]
[326929098,1715603445009,-151.0,0.0002091,2]
[326929099,1715603445018,-389.67964,0.0002091,2]
[326929100,1715603445027,-389.67964,0.0002091,2]
[326929101,1715603445036,-389.67964,0.0002091,2]
[326929102,1715603445045,-389.67964,0.0002091,2]
[326929103,1715603445055,-151.0,0.0002091,2]
[326929104,1715603445064,-151.0,0.0002091,2]
[326929105,1715603445073,-151.0,0.0002091,2]
[326929106,1715603445082,-228.085513,0.0002091,2]
[326929107,1715603445091,-151.0,0.0002091,2]
[326929108,1715603445100,-151.0,0.0002091,2]
[326929109,1715603445109,-151.0,0.0002091,2]
[326929110,1715603445118,-203.652959,0.0002091,2]
[326929111,1715603445127,-152.253036,0.0002091,2]
[326929112,1715603445137,-235.483339,0.0002091,2]
[326929113,1715603445147,-235.483339,0.0002091,2]
[326929114,1715603445157,-235.483339,0.0002091,2]
[326929115,1715603445166,-235.483339,0.0002091,2]
[326929116,1715603445175,-151.0,0.0002091,2]
[326929117,1715603445184,-151.0,0.0002091,2]
[326929118,1715603445194,-151.0,0.0002091,2]
[326929119,1715603445203,-193.14009,0.0002091,2]
[326929120,1715603445212,-151.0,0.0002091,2]
[326929121,1715603445222,-151.5885,0.0002091,2]
[326929122,1715603445231,-181.4271,0.0002091,2]
[326929123,1715603445241,-181.4271,0.0002091,2]
[326929124,1715603445251,-181.4271,0.0002091,2]
[326929125,1715603445260,-181.4271,0.0002091,2]
[326929126,1715603445270,-151.0,0.0002091,2]
[326929127,1715603445279,-153.22384,0.0002091,2]
[326929128,1715603445289,-384.714184,0.0002091,2]
[326929129,1715603445303,-384.714184,0.0002091,2]
[326929130,1715603445322,-384.714184,0.0002091,2]
[326929131,1715603445333,-384.714184,0.0002091,2]
[326929132,1715603445343,-151.0,0.0002091,2]
[326929133,1715603445354,-151.0,0.0002091,2]
[326929134,1715603445364,-152.592444,0.0002091,2]
[326929135,1715603445377,-1578.14462466,0.00020911,2]
[326929136,1715603445387,-156.39130606,0.00020911,2]
[326929137,1715603445398,-236.11595108,0.00020911,2]
[326929138,1715603445410,-186.55115227,0.00020911,2]
[326929139,1715603445419,-527.50907274,0.00020911,2]
[326929140,1715603445428,-1345.46378995,0.00020911,2]
[326929141,1715603445438,-942.21645851,0.00020911,2]
[326929142,1715603445448,-323.816752,0.00020911,2]
[326929143,1715603445458,-323.816752,0.00020911,2]
[326929144,1715603445467,-6370.02920846,0.00020912,2]
[326929145,1715603445477,-167.15395762,0.00020912,2]
[326929146,1715603445487,-447.0404404,0.00020912,2]
[326929147,1715603445496,-409.60880486,0.00020912,2]
[326929148,1715603445507,-154.88543324,0.00020912,2]
[326929149,1715603445517,-284.36708911,0.00020912,2]
[326929150,1715603445527,-2340.69439263,0.00020912,2]
[326929151,1715603445536,-151.0,0.00020912,2]
[326929152,1715603445546,-151.0,0.00020912,2]
[326929153,1715603445555,-323.816752,0.00020912,2]
[326929154,1715603445565,-323.816752,0.00020912,2]
[326929155,1715603445575,-227.968511,0.00020912,2]
[326929156,1715603445585,-227.968511,0.00020912,2]
[326929157,1715603445594,-151.0,0.00020912,2]
[326929158,1715603445604,-349.659806,0.00020912,2]
[326929159,1715603445613,-273.151034,0.00020912,2]
[326929160,1715603445623,-349.659806,0.00020912,2]
[326929161,1715603445632,-273.151034,0.00020912,2]
[326929162,1715603445642,-151.0,0.00020912,2]
[326929163,1715603445653,-151.0,0.00020912,2]
[326929164,1715603445662,-389.67964,0.00020912,2]
[326929165,1715603445671,-389.67964,0.00020912,2]
[326929166,1715603445681,-151.0,0.00020912,2]
[326929167,1715603445691,-151.0,0.00020912,2]
[326929168,1715603445701,-235.483339,0.00020912,2]
[326929169,1715603445711,-235.483339,0.00020912,2]
[326929170,1715603445720,-151.0,0.00020912,2]
[326929171,1715603445730,-181.4271,0.00020912,2]
[326929172,1715603445740,-181.4271,0.00020912,2]
[326929173,1715603445750,-384.714184,0.00020912,2]
[326929174,1715603445759,-384.714184,0.00020912,2]
[326929175,1715603445768,-151.77284,0.00020912,2]
[326929176,1715603445778,-151.0,0.00021918,2]
[326929177,1715603445788,-151.0,0.00021918,2]
[326929178,1715603445797,-155.439418,0.00021918,2]
[326929179,1715603445807,-159.48321964,0.00022,2]
[326929180,1715603445816,-5230.59288808,0.00022,4]
[326929181,1715603445826,-151.0,0.00022,2]
[326929182,1715603445836,-349.659806,0.00022,2]
[326929183,1715603445845,-273.151034,0.00022,2]
[326929184,1715603445855,-349.659806,0.00022,2]
[326929185,1715603445865,-273.151034,0.00022,2]
[326929186,1715603445876,-151.0,0.00022,2]
[326929187,1715603445886,-194.592302,0.00022,2]
[326929188,1715603445896,-389.67964,0.00022,2]
[326929189,1715603445906,-389.67964,0.00022,2]
[326929190,1715603445917,-151.0,0.00022,2]
[326929191,1715603445926,-151.0,0.00022,2]
[326929192,1715603445936,-235.483339,0.00022,2]
[326929193,1715603446048,-235.483339,0.00022,2]
[326929194,1715603446057,-151.0,0.00022,2]
[326929195,1715603446066,-181.4271,0.00022,2]
[326929196,1715603446076,-181.4271,0.00022,2]
[326929197,1715603446085,-384.714184,0.00022,2]
[326929198,1715603446094,-384.714184,0.00022,2]
[326929199,1715603446103,-150.0,0.00022678,2]
[326929200,1715603446112,-150.0,0.00022678,2]
[326929201,1715603446122,-164.535711,0.00023562,2]
[326929202,1715603446131,-237.503279,0.00023562,2]
[326929204,1715603446140,-323.56362609,0.000239,2]
[326929205,1715603446149,-1138.59791906,0.00024037,2]
[326929206,1715603446159,-227.968511,0.00024261,2]
[326929207,1715603446168,-227.968511,0.00024261,2]
[326929208,1715603446177,-151.0,0.00024658,2]
[326929209,1715603446187,-151.0,0.00024658,2]
[326929210,1715603446198,-151.0,0.00024658,2]
[326929211,1715603446208,-151.0,0.00024658,2]
[326929212,1715603446218,-150.0,0.00024821,2]
[326929213,1715603446228,-649.98920318,0.00024837,2]
[326929214,1715603446239,-527.77575471,0.00025,2]
[326929215,1715603446249,-151.0,0.00025,2]
[326929216,1715603446259,-151.0,0.00025,2]
[326929217,1715603446269,-2500.0,0.00026,2]
[326929218,1715603446279,-621.49946016,0.00026079,2]
[326929219,1715603446292,-209.326835,0.00026594,2]
[326929220,1715603446302,-150.0,0.00026963,3]
[326929221,1715603446311,-807.45922615,0.00027266,2]
[326929222,1715603446416,-331.13869291,0.00027266,2]
[326929223,1715603446425,-154.81422293,0.0002739,2]
[326929224,1715603446434,-323.816752,0.00027397,2]
[326929225,1715603446443,-323.816752,0.00027397,2]
[326929226,1715603446453,-1848.08,0.00027397,2]
[326929228,1715603446462,-1848.08,0.00027397,2]
[326929229,1715603446472,-1848.08,0.00027397,2]
[326929231,1715603446481,-416.63472179,0.00027397,2]
[326929248,1715604348860,-160.52966955,0.00018795,2]
[326929249,1715604348884,-169.5486352,0.00018888,2]
[326929250,1715604348909,-155.13326488,0.00018894,2]
[326929251,1715604348929,-24900.0,0.00018895,2]
[326929252,1715604348949,-387.5240931,0.00018925,2]
[326929253,1715604348969,-150.0,0.00019818,2]
[326929254,1715604348988,-207.02451915,0.00019865,2]
[326929255,1715604349011,-154.78330338,0.00019892,2]
[326929256,1715604349031,-1437.73633344,0.00019899,2]
[326929257,1715604349053,-455.43916764,0.000199,2]
[326929258,1715604349075,-500.0,0.00019999,2]
[326929259,1715604349096,-267.09799194,0.00019999,2]
[326929260,1715604349118,-500.0,0.00019999,2]
[326929261,1715604349141,-500.0,0.00019999,2]
[326929262,1715604349164,-500.0,0.00019999,2]
[326929263,1715604349186,-500.0,0.00019999,2]
[326929264,1715604349209,-500.0,0.00019999,2]
[326929265,1715604349233,-500.0,0.00019999,2]
[326929266,1715604349256,-500.0,0.00019999,2]
[326929267,1715604349276,-500.0,0.00019999,2]
[326929268,1715604349297,-500.0,0.00019999,2]
[326929269,1715604349316,-500.0,0.00019999,2]
[326929270,1715604349336,-500.0,0.00019999,2]